bitfinex/quotes_ETHUSD_20210701
["timestamp","ask_amount","ask_price","bid_price","bid_amount"]
[1625106078057,0.03832555,2227.4,2227.1,0.14]
[1625106078244,4.39485172,2227.6,2227.2,10.15]
[1625106078540,4.39485172,2227.6,2227.1,0.14]
[1625106078638,4.39485172,2227.6,2227.2,0.03832555]
[1625106081478,0.03724365,2227.6,2227.2,0.03832555]
[1625106081580,0.03724365,2227.6,2227.2,6.77051555]
[1625106081678,14.0,2227.5,2227.2,6.77051555]
[1625106081779,14.0,2227.5,2227.3,0.14]
[1625106082335,4.33358559,2227.4,2227.3,0.14]
[1625106082534,14.0,2227.5,2227.3,0.14]
[1625106082635,0.03457001,2227.8,2227.4,15.6]
[1625106082845,0.03302048,2228.0,2227.6,5.01]
[1625106082938,0.03302048,2228.0,2227.6,20.01]
[1625106083036,0.03302048,2228.0,2227.7,0.14]
[1625106083237,0.03302048,2228.0,2227.7,4.7558]
[1625106083644,0.03302048,2228.0,2227.8,15.0]
[1625106083840,0.03302048,2228.0,2227.9,11.87027]
[1625106083939,0.03302048,2228.0,2227.9,6.87027]
[1625106084780,0.03302048,2228.0,2227.9,0.14]
[1625106085882,0.03302048,2228.0,2227.5,7.66000088]
[1625106086080,0.03302048,2228.0,2227.6,0.14]
[1625106086185,0.03457001,2227.8,2227.6,9.11415]
[1625106086283,0.03457001,2227.8,2227.6,0.14]
[1625106087239,0.03302048,2228.0,2227.6,0.14]
[1625106088882,4.61323764,2228.3,2227.6,0.14]
[1625106088984,11.34576764,2228.3,2227.6,0.14]
[1625106089180,0.2,2228.2,2227.6,0.14]
[1625106089784,0.2,2228.2,2228.0,0.00714348]
[1625106090486,11.34576764,2228.3,2228.0,0.00714348]
[1625106091932,0.03135989,2228.4,2228.0,0.00714348]
[1625106093289,6.76328989,2228.4,2228.0,0.00714348]
[1625106093485,4.66304912,2228.3,2228.0,0.00714348]
[1625106093584,8.83224912,2228.3,2228.0,0.00714348]
[1625106094383,6.73219,2228.2,2228.0,0.00714348]
[1625106094715,4.47576134,2228.1,2228.0,0.00714348]
[1625106095831,4.47576134,2228.1,2227.4,0.03724365]
[1625106095935,4.47576134,2228.1,2227.2,0.03832555]
[1625106095936,19.35,2227.9,2227.2,0.03832555]
[1625106096035,5.02758453,2227.8,2227.2,0.03832555]
[1625106096130,0.02123082,2227.7,2227.2,0.03832555]
[1625106096234,5.01,2227.6,2227.2,0.03832555]
[1625106096329,4.87893355,2227.5,2227.2,0.03832555]
[1625106096433,4.87628609,2227.5,2227.2,0.03832555]
[1625106096530,0.2,2227.4,2227.2,0.03832555]
[1625106096631,6.7354,2227.3,2227.2,0.03832555]
[1625106096729,11.25880025,2227.3,2227.2,0.03832555]
[1625106096831,14.99970025,2227.3,2227.2,0.03832555]
[1625106097232,5.12262395,2227.1,2226.8,0.03921306]
[1625106097332,5.24178471,2226.9,2226.6,0.03989138]
[1625106097633,0.2,2226.8,2226.6,0.03989138]
[1625106097794,4.83230916,2226.7,2226.6,0.03989138]
[1625106098392,9.05,2226.6,2226.4,0.04057862]
[1625106098493,4.87803225,2226.5,2226.4,0.04057862]
[1625106101740,4.41783759,2226.8,2226.4,0.04057862]
[1625106102046,0.03989138,2226.8,2226.4,0.04057862]
[1625106102318,0.03921306,2227.0,2226.5,0.14]
[1625106102410,4.37794621,2226.8,2226.5,0.14]
[1625106102503,4.37794621,2226.7,2226.5,6.87476]
[1625106102606,0.03921306,2227.0,2226.5,6.87476]
[1625106103002,0.03921306,2227.0,2226.5,10.24199]
[1625106103154,0.03921306,2227.0,2226.6,0.03989138]
[1625106103353,0.03921306,2227.0,2226.7,0.14]
[1625106103607,0.03921306,2227.0,2226.7,15.83199]
[1625106103703,0.03921306,2227.0,2226.9,15.04]
[1625106103904,0.03921306,2227.0,2226.9,23.18]
[1625106104402,0.03921306,2227.0,2226.9,30.18]
[1625106104527,0.03921306,2227.0,2226.9,32.71668588]
[1625106104628,0.03921306,2227.0,2226.9,40.71668588]
[1625106104726,0.0062457,2227.2,2227.0,10.56628]
[1625106104828,0.0062457,2227.2,2227.1,6.73259]
[1625106104926,0.0062457,2227.2,2227.1,6.87259]
[1625106111784,0.0062457,2227.2,2226.8,0.03921306]
[1625106111907,3.8703457,2227.2,2226.8,0.03921306]
[1625106112003,5.90155225,2227.1,2226.8,0.03921306]
[1625106112081,6.08155225,2227.1,2226.8,0.03921306]
[1625106112181,6.38522236,2227.1,2226.8,0.03921306]
[1625106113084,0.48367011,2227.1,2226.8,0.03921306]
[1625106113285,0.30367011,2227.1,2226.8,0.03921306]
[1625106113384,4.77578871,2227.1,2226.8,0.03921306]
[1625106113938,4.4721186,2227.1,2226.8,0.03921306]
[1625106114036,0.0062457,2227.2,2226.8,0.03921306]
[1625106114439,6.7421457,2227.2,2226.8,0.03921306]
[1625106114541,4.43495615,2227.1,2226.8,0.03921306]
[1625106114641,0.12,2227.1,2226.8,0.03921306]
[1625106114843,0.0062457,2227.2,2226.8,0.03921306]
[1625106115788,6.73621,2227.1,2226.8,0.03921306]
[1625106115889,0.0062457,2227.2,2226.8,0.03921306]
[1625106116189,0.0062457,2227.2,2226.9,0.14]
[1625106116590,0.0062457,2227.2,2226.8,0.03921306]
[1625106117190,4.47752932,2227.2,2226.8,0.03921306]
[1625106117390,0.1,2227.1,2226.8,0.03921306]
[1625106117595,8.25,2227.0,2226.6,0.03989138]
[1625106117696,5.02227629,2226.9,2226.6,0.03989138]
[1625106118948,4.50645435,2226.7,2226.6,0.03989138]
[1625106119043,9.53135435,2226.7,2226.6,0.03989138]
[1625106119243,9.61135435,2226.7,2226.6,0.03989138]
[1625106121789,4.65586431,2226.4,2226.1,0.14]
[1625106121890,4.65586431,2226.4,2225.9,2.5]
[1625106121993,4.85586431,2226.4,2225.8,1.08519443]
[1625106122091,4.85586431,2226.4,2225.8,0.17598509]
[1625106122191,0.1,2226.3,2225.8,0.17598509]
[1625106122398,2.13636312,2226.4,2225.8,0.17598509]
[1625106124833,0.04034908,2226.4,2225.8,0.17598509]
[1625106126472,0.04034908,2226.4,2225.8,6.91364509]
[1625106129216,0.04034908,2226.4,2225.8,0.17598509]
[1625106129418,4.59047822,2226.4,2225.8,0.17598509]
[1625106130116,4.59047822,2226.4,2225.8,0.12598509]
[1625106130217,8.88827822,2226.4,2225.8,0.12598509]
[1625106130417,0.03598509,2226.0,2225.8,0.12598509]
[1625106131039,0.04034908,2226.4,2225.9,6.75]
[1625106131124,0.04034908,2226.4,2225.6,0.01]
[1625106131218,0.04034908,2226.4,2226.0,0.14]
[1625106132469,0.04034908,2226.4,2226.1,6.73694]
[1625106137664,4.50549575,2226.7,2226.1,6.73694]
[1625106138530,4.50549575,2226.7,2226.4,0.04057862]
[1625106140463,4.50549575,2226.7,2226.5,0.14]
[1625106141303,4.50549575,2226.7,2226.6,6.73527]
[1625106141500,0.03989138,2226.8,2226.6,6.87527]
[1625106141600,0.03989138,2226.8,2226.6,0.14]
[1625106141700,0.03989138,2226.8,2226.4,0.04057862]
[1625106142705,4.36097985,2226.7,2226.4,0.04057862]
[1625106142865,0.03989138,2226.8,2226.4,0.04057862]
[1625106144067,0.03989138,2226.8,2226.4,6.77669862]
[1625106145117,0.03989138,2226.8,2226.5,0.14]
[1625106146204,0.03989138,2226.8,2226.6,13.4925044]
[1625106146419,0.03989138,2226.8,2226.6,21.4925044]
[1625106146503,0.03989138,2226.8,2226.7,12.24]
[1625106146600,0.03989138,2226.8,2226.7,12.44]
[1625106146802,0.0062457,2227.2,2226.9,8.4]
[1625106146915,0.0062457,2227.2,2226.9,11.7668]
[1625106147012,0.0062457,2227.2,2227.0,0.14]
[1625106147361,0.0062457,2227.2,2227.0,6.87364]
[1625106147963,0.0062457,2227.2,2227.0,7.87364]
[1625106150200,4.24279475,2227.6,2227.0,7.87364]
[1625106150797,4.24279475,2227.6,2227.0,1.14]
[1625106150900,4.24279475,2227.6,2227.0,0.14]
[1625106151096,4.24279475,2227.6,2227.4,0.03724365]
[1625106151751,10.97773475,2227.6,2227.4,0.03724365]
[1625106151849,4.36097985,2227.5,2227.4,0.03724365]
[1625106152249,4.54622501,2227.7,2227.4,0.03724365]
[1625106155514,11.28096501,2227.7,2227.4,0.03724365]
[1625106156215,4.54622501,2227.7,2227.4,0.03724365]
[1625106159555,4.54622501,2227.7,2227.2,0.0255692]
[1625106159755,10.58047001,2227.8,2227.2,0.0255692]
[1625106159855,10.58047001,2227.8,2227.3,0.08]
[1625106159956,0.03724365,2227.6,2227.3,0.14]
[1625106160356,0.03724365,2227.6,2227.3,9.11666]
[1625106160757,0.03724365,2227.6,2227.3,0.14]
[1625106161427,0.03724365,2227.6,2227.3,6.87337]
[1625106161631,0.03724365,2227.6,2227.3,0.14]
[1625106162130,0.03724365,2227.6,2227.3,0.09891415]
[1625106162732,0.03724365,2227.6,2227.3,6.83231415]
[1625106163507,0.02181366,2227.8,2227.3,6.83231415]
[1625106163709,0.02181366,2227.8,2227.4,0.08]
[1625106164363,0.02181366,2227.8,2227.3,6.83231415]
[1625106170059,0.02181366,2227.8,2227.4,3.3661505]
[1625106170260,0.02181366,2227.8,2227.5,0.26]
[1625106170663,0.02181366,2227.8,2227.6,6.73224]
[1625106170965,0.02181366,2227.8,2227.6,6.87224]
[1625106171865,0.02181366,2227.8,2227.7,0.04]
[1625106172065,0.02181366,2227.8,2227.7,0.18]
[1625106172387,0.02181366,2227.8,2227.7,0.14]
[1625106175056,0.02181366,2227.8,2227.2,10.0023492]
[1625106175158,3.54841366,2227.8,2227.2,1.0255692]
[1625106175258,4.93843578,2227.7,2227.2,1.1655692]
[1625106175359,5.03706444,2227.7,2227.2,1.1655692]
[1625106175457,5.03706444,2227.7,2227.2,1.0255692]
[1625106175556,5.03706444,2227.7,2227.2,0.0255692]
[1625106175855,0.1,2227.6,2227.2,0.0255692]
[1625106176557,5.03706444,2227.7,2227.2,0.0255692]
[1625106176991,5.05723545,2227.7,2227.2,0.0255692]
[1625106177092,5.03706444,2227.7,2227.2,0.0255692]
[1625106177191,5.05380706,2227.7,2227.2,0.0255692]
[1625106177392,6.73492,2227.5,2227.2,0.0255692]
[1625106177494,4.36097985,2227.4,2227.2,0.0255692]
[1625106180295,0.02181366,2227.8,2227.2,0.0255692]
[1625106180395,0.02181366,2227.8,2227.3,0.14]
[1625106181448,0.02181366,2227.8,2227.3,3.5063043]
[1625106181545,0.02181366,2227.8,2227.5,6.73236]
[1625106181744,0.02181366,2227.8,2227.6,0.14]
[1625106182700,0.02181366,2227.8,2227.2,0.0255692]
[1625106182797,3.88141366,2227.8,2227.2,0.1655692]
[1625106182901,4.55430546,2227.7,2227.2,0.1655692]
[1625106184347,4.55430546,2227.7,2227.2,3.5321351]
[1625106184447,4.55430546,2227.7,2227.2,10.2657551]
[1625106185398,4.55430546,2227.7,2227.2,3.5321351]
[1625106186540,0.02181366,2227.8,2227.2,3.5321351]
[1625106186844,0.02181366,2227.8,2227.3,0.14]
[1625106187038,0.02181366,2227.8,2227.4,0.14]
[1625106187144,0.02181366,2227.8,2227.6,6.73248]
[1625106187341,0.02181366,2227.8,2227.7,0.14]
[1625106187441,0.02181366,2227.8,2227.6,6.73248]
[1625106188502,0.02181366,2227.8,2227.5,0.14]
[1625106188707,4.36097985,2227.7,2227.3,3.36621]
[1625106188806,4.36097985,2227.7,2227.2,3.3921351]
[1625106189809,4.36097985,2227.7,2227.3,6.73333]
[1625106190111,8.65627331,2227.3,2227.2,3.3921351]
[1625106190335,8.65627331,2227.3,2227.2,3.4721351]
[1625106191238,8.65627331,2227.3,2227.2,3.50937875]
[1625106191437,8.65627331,2227.3,2227.2,3.42937875]
[1625106192492,8.65627331,2227.3,2227.2,10.16259875]
[1625106192493,12.20167331,2227.3,2227.2,10.16259875]
[1625106192595,12.20167331,2227.3,2227.2,0.06281285]
[1625106193190,12.32167331,2227.3,2227.2,0.06281285]
[1625106193590,17.15,2227.2,2226.0,4.88611775]
[1625106193693,4.77581389,2227.1,2226.2,0.14]
[1625106193795,5.05441654,2227.0,2226.1,0.13210234]
[1625106193888,10.43486645,2226.9,2226.1,0.13210234]
[1625106193994,5.039592,2226.8,2225.9,0.14]
[1625106194141,0.04034908,2226.4,2225.9,0.14]
[1625106194244,4.81282966,2226.4,2225.9,0.14]
[1625106194345,4.77248058,2226.4,2225.9,0.14]
[1625106194546,11.51049058,2226.4,2225.9,0.14]
[1625106194655,0.14,2226.3,2225.8,0.03598509]
[1625106194765,4.8792,2226.3,2225.8,0.03598509]
[1625106194851,5.07577644,2226.2,2225.8,0.03598509]
[1625106194950,5.23577644,2226.2,2225.8,0.03598509]
[1625106195249,5.52691379,2226.2,2225.8,0.03598509]
[1625106195349,5.52691379,2226.2,2225.8,8.509e-05]
[1625106195450,13.85,2226.0,2224.7,18.64202497]
[1625106195602,18.65,2225.8,2224.6,7.53296957]
[1625106195700,6.41584027,2225.7,2224.6,0.79302957]
[1625106195801,0.30223647,2225.4,2224.6,0.79302957]
[1625106195897,0.01860926,2225.0,2224.6,0.79302957]
[1625106196000,0.01860926,2225.0,2224.4,0.04]
[1625106196001,4.26850926,2225.0,2224.4,0.04]
[1625106196098,4.8776828,2224.9,2224.4,0.04]
[1625106197347,1.34090926,2225.0,2224.5,5.01]
[1625106197445,0.01860926,2225.0,2224.5,5.01]
[1625106197546,0.01860926,2225.0,2224.6,0.14]
[1625106197643,0.01860926,2225.0,2224.6,5.15]
[1625106197743,0.01860926,2225.0,2224.6,0.14]
[1625106198247,0.01860926,2225.0,2224.6,2.61364321]
[1625106198647,0.01860926,2225.0,2224.8,0.04034908]
[1625106198947,0.01860926,2225.0,2224.9,0.14]
[1625106199779,0.01860926,2225.0,2224.8,0.04034908]
[1625106199780,0.01860926,2225.0,2224.8,0.03034908]
[1625106199941,0.01860926,2225.0,2224.9,0.14]
[1625106200140,0.01860926,2225.0,2224.9,6.99]
[1625106201244,0.01860926,2225.0,2224.9,0.14]
[1625106201528,4.63229377,2224.9,2224.8,0.03034908]
[1625106201624,4.75229377,2224.9,2224.8,0.03034908]
[1625106202224,4.36989039,2224.9,2224.8,0.03034908]
[1625106202625,4.73370926,2225.0,2224.8,0.03034908]
[1625106202725,9.12610625,2225.0,2224.8,0.03034908]
[1625106202825,4.38214251,2224.9,2224.8,0.03034908]
[1625106202927,4.38214251,2224.9,2224.8,0.03654255]
[1625106203025,4.73370926,2225.0,2224.8,0.03654255]
[1625106203126,9.06283043,2225.0,2224.8,0.03654255]
[1625106203225,49.82345745,2224.6,2224.2,6.75143]
[1625106203325,49.82345745,2224.6,2224.3,0.14]
[1625106204173,49.82345745,2224.6,2224.3,6.88099]
[1625106204374,49.82345745,2224.6,2224.4,0.08]
[1625106204574,49.82345745,2224.6,2224.5,0.14]
[1625106205481,49.82345745,2224.6,2224.5,6.88064]
[1625106205681,49.51628413,2224.6,2224.5,6.88064]
[1625106207377,45.52419051,2224.6,2224.5,6.88064]
[1625106207679,0.01860926,2225.0,2224.5,6.88064]
[1625106207783,9.26e-06,2225.0,2224.5,26.89064]
[1625106207886,9.26e-06,2225.0,2224.7,9.7732]
[1625106208081,9.26e-06,2225.0,2224.9,3.29]
[1625106208188,9.26e-06,2225.0,2224.9,3.45]
[1625106209133,9.26e-06,2225.0,2224.9,6.05063488]
[1625106209333,0.0278022,2225.6,2224.9,6.05063488]
[1625106209431,0.0278022,2225.6,2225.0,3.5690445]
[1625106209533,0.0278022,2225.6,2225.0,3.7090445]
[1625106209934,0.0278022,2225.6,2225.0,3.5090445]
[1625106210133,0.0278022,2225.6,2225.1,8.98412]
[1625106210233,0.0278022,2225.6,2224.9,2.60063488]
[1625106210334,4.8297022,2225.6,2225.2,0.14]
[1625106210522,4.57338735,2225.5,2225.1,0.14]
[1625106210876,4.8297022,2225.6,2225.1,0.14]
[1625106210976,4.40477634,2225.5,2225.1,0.14]
[1625106211683,4.40477634,2225.5,2224.4,3.36981]
[1625106211778,4.40477634,2225.5,2224.8,0.14]
[1625106211882,0.14,2225.4,2224.8,0.14]
[1625106212381,4.40477634,2225.5,2224.8,0.14]
[1625106213926,13.0,2225.4,2224.2,0.01]
[1625106214028,5.42673265,2225.3,2224.5,0.14]
[1625106214127,0.16,2225.3,2224.5,0.14]
[1625106214225,5.16421855,2225.3,2224.5,0.14]
[1625106214627,5.00421855,2225.3,2224.5,0.14]
[1625106214827,5.00421855,2225.3,2224.8,0.01860926]
[1625106217367,5.00421855,2225.3,2224.4,0.14]
[1625106217466,0.30419235,2225.1,2224.4,0.14]
[1625106217563,11.17137948,2225.1,2224.2,0.01]
[1625106217662,0.01860926,2225.0,2224.2,0.15]
[1625106219165,5.15793072,2224.9,2224.2,0.15]
[1625106221510,5.54998588,2224.7,2224.0,6.74256]
[1625106221614,5.54998588,2224.7,2223.3,15.2793531]
[1625106221615,5.8250108,2224.5,2224.1,0.14]
[1625106221711,0.2871303,2224.4,2224.1,0.14]
[1625106221857,18.24731807,2224.4,2223.6,0.01079152]
[1625106221954,5.93364217,2224.3,2223.6,0.01079152]
[1625106222252,0.08,2224.2,2223.6,0.01079152]
[1625106222454,0.03340487,2224.1,2223.6,0.01079152]
[1625106222554,3.93870487,2224.1,2223.6,0.01079152]
[1625106222652,5.28951095,2224.0,2223.6,0.01079152]
[1625106222855,6.86603,2223.9,2223.6,0.01079152]
[1625106223055,5.64554016,2223.8,2223.6,0.01079152]
[1625106223655,0.29809914,2223.7,2223.6,0.01079152]
[1625106223857,5.29472003,2223.7,2223.6,0.01079152]
[1625106224119,5.39472003,2223.7,2223.6,0.01079152]
[1625106224409,12.14170003,2223.7,2223.6,0.01079152]
[1625106225912,17.15170003,2223.7,2223.6,0.01079152]
[1625106226014,12.14170003,2223.7,2223.6,0.01079152]
[1625106226370,12.14170003,2223.7,2222.6,0.10079152]
[1625106226371,12.15213238,2223.7,2222.6,0.10079152]
[1625106227265,0.06,2223.6,2222.6,0.10079152]
[1625106227366,5.13217577,2223.5,2222.6,0.10079152]
[1625106227465,5.2366077,2223.5,2222.6,6.84754152]
[1625106227568,5.2366077,2223.5,2222.6,9.35866358]
[1625106227867,5.2366077,2223.5,2222.6,17.35866358]
[1625106227971,5.2366077,2223.5,2222.6,10.61191358]
[1625106228070,5.2366077,2223.5,2222.6,2.61191358]
[1625106228468,5.2366077,2223.5,2222.6,9.35916358]
[1625106228619,0.12,2223.4,2222.6,0.10079152]
[1625106228908,6.1675077,2223.5,2222.6,0.10079152]
[1625106229208,5.9175077,2223.5,2222.6,0.10079152]
[1625106229707,5.9175077,2223.5,2222.6,0.05079152]
[1625106230434,5.9175077,2223.5,2222.6,6.79794152]
[1625106230634,5.9175077,2223.5,2222.6,0.05079152]
[1625106230735,0.06,2223.4,2222.6,0.00079152]
[1625106231376,0.6809,2223.5,2222.6,0.00079152]
[1625106231477,0.6809,2223.5,2222.6,6.74808152]
[1625106231478,4.47334261,2223.3,2222.6,6.74808152]
[1625106231577,4.47334261,2223.4,2222.6,6.74808152]
[1625106231985,30.7777,2224.0,2222.6,6.74808152]
[1625106232089,20.5319,2224.0,2222.8,5.01]
[1625106232178,20.5319,2224.0,2222.9,0.09780535]
[1625106232280,4.47334261,2223.8,2223.0,3.29]
[1625106232527,4.47334261,2223.9,2223.1,0.14]
[1625106232626,4.47334261,2223.9,2223.5,8.99139]
[1625106232724,10.6754,2224.4,2223.5,8.99139]
[1625106232826,4.67384103,2224.3,2223.6,0.14]
[1625106234472,4.67384103,2224.3,2223.9,6.74346]
[1625106234570,4.97941773,2224.7,2223.9,6.74346]
[1625106234672,4.97941773,2224.7,2224.0,0.14]
[1625106234775,4.97941773,2224.7,2223.5,0.0932707]
[1625106234776,5.6722925,2224.4,2223.5,0.0932707]
[1625106234876,5.73318189,2224.4,2223.7,0.14]
[1625106234973,5.73318189,2224.4,2223.1,8.99335]
[1625106234974,0.3021984,2224.0,2223.1,8.99335]
[1625106235073,0.3021984,2224.0,2223.4,0.14]
[1625106235074,5.3632426,2223.9,2223.4,0.14]
[1625106235170,5.4714491,2223.9,2222.7,4.4957495]
[1625106235271,5.4714491,2223.9,2223.1,0.14]
[1625106235480,5.3714491,2223.9,2223.1,0.14]
[1625106235581,6.74663,2223.8,2223.1,0.14]
[1625106235680,4.8727207,2223.7,2223.1,0.14]
[1625106235781,4.8727207,2223.7,2222.7,6.74663]
[1625106235884,4.8727207,2223.7,2223.0,0.14]
[1625106235885,0.06789858,2223.4,2223.0,0.14]
[1625106235983,10.22319498,2223.4,2222.5,0.14]
[1625106236081,10.22319498,2223.4,2222.2,0.24766664]
[1625106236184,10.22319498,2223.4,2222.2,0.38766664]
[1625106236281,0.27532719,2223.3,2222.2,0.38766664]
[1625106236582,5.4541311,2223.2,2222.2,0.38766664]
[1625106236685,5.39239402,2223.2,2222.2,0.38766664]
[1625106236785,4.86807935,2222.7,2222.2,0.38766664]
[1625106236913,4.86807935,2222.7,2222.2,0.13766664]
[1625106237710,4.86807935,2222.7,2221.4,0.14]
[1625106237711,0.30990126,2222.4,2221.4,0.14]
[1625106237822,0.30990126,2222.4,2220.9,0.9012916]
[1625106237962,0.30990126,2222.4,2220.6,2.67508754]
[1625106237963,0.29627568,2221.7,2220.6,2.67508754]
[1625106238059,0.29044681,2221.5,2221.0,68.8]
[1625106238127,0.30961722,2221.3,2221.0,68.8]
[1625106238185,1.75931722,2221.3,2221.0,68.8]
[1625106238297,5.89624869,2221.2,2221.0,68.8]
[1625106238390,10.59154869,2221.2,2221.0,68.8]
[1625106238490,6.88189387,2221.1,2221.0,68.8]
[1625106238585,23.15108097,2221.1,2221.0,68.8]
[1625106238686,26.58108097,2221.1,2221.0,68.8]
[1625106238790,28.36308097,2221.1,2221.0,2.861473]
[1625106238907,28.36308097,2221.1,2218.3,38.72643277]
[1625106238908,34.05,2221.0,2218.3,38.72643277]
[1625106238999,6.75839,2220.1,2218.3,49.98485277]
[1625106239085,10.43424861,2220.2,2218.3,38.57643277]
[1625106239248,5.47116284,2220.1,2218.3,38.54043277]
[1625106239341,5.23399381,2220.0,2218.3,38.54043277]
[1625106239438,7.91433525,2220.0,2218.3,38.54043277]
[1625106239553,13.22940022,2219.9,2218.3,38.54043277]
[1625106239644,3.29,2219.8,2218.3,38.54043277]
[1625106239737,8.15696999,2219.7,2218.3,38.54043277]
[1625106239925,6.25141808,2219.5,2218.3,38.54043277]
[1625106239997,6.3212833,2219.5,2218.3,38.54043277]
[1625106240101,10.14619931,2218.9,2218.3,38.54043277]
[1625106240205,10.04619931,2218.9,2218.3,37.49043277]
[1625106240298,0.30500974,2218.4,2218.1,0.2]
[1625106240422,4.55660974,2218.4,2218.1,0.2]
[1625106240505,6.21732406,2218.3,2218.1,0.2]
[1625106240698,7.77962406,2218.3,2218.1,0.2]
[1625106240799,10.16899619,2218.2,2218.1,0.2]
[1625106240902,5.15899619,2218.2,2218.1,0.2]
[1625106240998,0.14,2218.2,2218.1,0.2]
[1625106241201,5.03865818,2218.2,2218.1,0.2]
[1625106241501,5.19865818,2218.2,2218.1,0.2]
[1625106241597,5.19865818,2218.2,2217.5,0.006]
[1625106241598,5.19865818,2218.2,2217.3,0.046]
[1625106241703,0.0412486,2218.1,2217.0,0.15]
[1625106241998,0.0412486,2218.1,2217.0,0.29]
[1625106242226,5.03865818,2218.2,2217.0,0.15]
[1625106242326,5.03865818,2218.2,2217.2,0.14]
[1625106242425,4.77194718,2218.3,2217.2,0.14]
[1625106242528,4.2516,2218.4,2217.1,1.3394054]
[1625106242632,0.0750001,2218.8,2217.3,2.3994054]
[1625106242741,4.71545577,2218.7,2217.3,5.6894054]
[1625106242825,0.0750001,2218.8,2217.4,14.64]
[1625106242928,0.0750001,2218.8,2217.8,3.29]
[1625106243029,5.8625839,2219.8,2218.0,3.29]
[1625106243126,5.8625839,2219.8,2218.1,0.07871424]
[1625106243328,5.8625839,2219.8,2218.2,5.01]
[1625106243527,5.8625839,2219.8,2218.3,0.14787009]
[1625106244032,5.8625839,2219.8,2218.3,2.45894216]
[1625106244230,0.01157057,2220.4,2218.3,7.54975369]
[1625106244410,0.01157057,2220.4,2218.5,5.01]
[1625106244500,0.01157057,2220.4,2218.6,0.18711964]
[1625106244597,0.01157057,2220.4,2218.6,3.61711964]
[1625106244699,0.01157057,2220.4,2218.8,5.01]
[1625106244800,0.01157057,2220.4,2218.9,0.07628531]
[1625106244901,0.01157057,2220.4,2218.9,0.21628531]
[1625106245109,0.01157057,2220.4,2218.9,0.14]
[1625106245110,6.35726505,2220.4,2218.9,0.14]
[1625106245200,0.01157057,2220.4,2218.9,0.14]
[1625106245300,0.06,2220.3,2218.9,0.14]
[1625106245401,4.9612,2220.3,2218.9,0.14]
[1625106245511,5.27809025,2220.2,2218.9,0.14]
[1625106245603,5.27731431,2220.2,2218.9,0.14]
[1625106246503,5.27731431,2220.2,2218.9,0.172739]
[1625106247511,5.02731431,2220.2,2219.0,5.01]
[1625106247712,5.02731431,2220.2,2219.1,0.14]
[1625106248714,5.5426589,2220.6,2219.2,0.05415071]
[1625106248814,4.7644,2220.3,2219.3,0.14]
[1625106248945,4.7644,2220.3,2218.5,0.00765519]
[1625106248946,6.88400496,2220.1,2218.5,0.00765519]
[1625106249040,0.43325029,2220.0,2218.5,0.00765519]
[1625106249140,1.98285029,2220.0,2218.6,0.14]
[1625106249340,5.83926275,2219.9,2218.6,0.14]
[1625106249439,0.16587634,2219.8,2218.6,0.14]
[1625106249543,0.16587634,2219.8,2217.2,9.01122]
[1625106249544,4.5239278,2219.8,2217.2,9.01122]
[1625106249642,4.5239278,2219.8,2218.3,0.14]
[1625106249643,0.30731932,2219.5,2218.3,0.14]
[1625106249746,6.54532434,2219.4,2218.3,0.14]
[1625106249842,6.54532434,2219.4,2217.0,4.44822697]
[1625106249843,6.76177,2219.1,2217.0,2.46107207]
[1625106249940,0.28118254,2219.0,2218.0,0.14]
[1625106250040,6.01485052,2219.0,2218.0,0.14]
[1625106250139,11.81755052,2219.0,2218.0,0.14]
[1625106250441,11.81755052,2219.0,2218.0,0.09]
[1625106251217,11.52244314,2219.0,2218.0,0.09]
[1625106251519,11.52244314,2219.0,2217.4,6.7598]
[1625106251617,5.02814671,2218.8,2217.0,9.16316]
[1625106251725,18.94020555,2218.7,2217.0,0.04]
[1625106251820,18.94020555,2218.7,2217.1,0.14]
[1625106252036,0.40313749,2218.6,2217.1,0.14]
[1625106252114,6.76363,2218.3,2217.1,0.14]
[1625106252221,0.20396707,2218.2,2217.1,0.14]
[1625106252319,9.45228123,2218.2,2217.1,0.14]
[1625106252633,9.45228123,2218.2,2216.2,6.76331]
[1625106252738,5.01,2218.0,2216.7,0.14]
[1625106252844,5.01,2218.0,2216.9,0.5]
[1625106252933,0.30160077,2217.8,2216.9,0.5]
[1625106253020,3.03410077,2217.8,2216.9,0.5]
[1625106253120,10.39128099,2217.7,2216.9,0.5]
[1625106253217,9.38575266,2217.7,2216.9,0.5]
[1625106253316,9.38575266,2217.7,2216.9,7.35]
[1625106253436,9.26524334,2217.7,2216.9,7.35]
[1625106253535,9.26524334,2217.7,2216.9,0.5]
[1625106253739,9.25267167,2217.7,2216.9,0.0001]
[1625106253844,5.01,2217.5,2216.9,0.0001]
[1625106253944,0.0059,2216.6,2216.3,4.593161]
[1625106254043,3.2733,2216.6,2216.3,4.593161]
[1625106254150,4.70114107,2216.5,2216.3,1.92195481]
[1625106254244,4.70114107,2216.5,2216.3,1.57695481]
[1625106254368,4.70114107,2216.5,2216.3,1.52695481]
[1625106254643,4.69114107,2216.5,2216.3,1.52695481]
[1625106254897,4.59114107,2216.5,2216.3,1.52695481]
[1625106255888,4.59114107,2216.5,2216.4,0.00679364]
[1625106256095,4.66321829,2216.6,2216.4,0.00679364]
[1625106256196,0.0059,2216.6,2216.4,0.00679364]
[1625106256393,0.0059,2216.6,2216.4,0.14679364]
[1625106257491,0.0059,2216.6,2216.4,0.00679364]
[1625106259038,0.0059,2216.6,2216.4,0.14679364]
[1625106259338,0.0059,2216.6,2216.4,0.09679364]
[1625106259441,0.0059,2216.6,2216.3,1.66695481]
[1625106259840,0.0059,2216.6,2216.3,0.52695481]
[1625106260246,4.81248492,2216.6,2216.1,0.2]
[1625106260600,4.81248492,2216.6,2215.5,0.09264794]
[1625106260803,4.90036237,2216.6,2215.5,0.09264794]
[1625106261104,4.81248492,2216.6,2215.5,0.09264794]
[1625106261203,0.0059,2216.6,2215.6,0.14]
[1625106261306,4.62826347,2216.6,2215.6,0.14]
[1625106261405,4.62236347,2216.5,2215.6,0.14]
[1625106261603,0.0059,2216.6,2215.5,2.31819137]
[1625106261803,0.0059,2216.6,2215.6,0.14]
[1625106262101,0.0059,2216.6,2215.6,5.15]
[1625106262208,0.0059,2216.6,2215.6,0.14]
[1625106263528,0.0059,2216.6,2215.6,6.90688]